{"text_format":"1","workbook":"xlsx","n_sheets":7,"sheets":["Forside","Betalingsvillighed","Gødningsprodukter","Opslagstabeller","Forudsætninger","Udskrift","Postnummer"],"not_rendered":{"charts":0,"images":67,"macros":1,"external_links":0,"defined_names":11,"comments":0,"pivot_tables":0},"unopened":[],"bounds":{"document_bytes":16777216,"sheet_cells":100000,"rows_first":2000,"rows_last":500,"rows_between":2000,"halvings":0,"cell_chars":16384,"cell_head_chars":4096},"cells_cut":0,"cells_raw":0,"read":"whole","date_system":"1900"}

{"sheet":"Forside","index":0,"n_rows":22,"n_cols":19,"rows_kept":22,"cut":false,"hidden":false,"merged":[[18,3,18,4],[18,9,18,10],[21,3,21,4],[7,1,10,11],[14,3,14,4],[14,9,14,10],[15,3,15,4],[15,9,15,10],[16,3,16,4],[16,9,16,10]]}
[]
[null,null,null,null,null,null,null,null,null,null,"Version 1.0, beta"]
[null,null,null,null,null,null,null,null,null,null,"November 2015"]
[]
[]
[null,"Beregning af gødningsværdien af økologiske gødningsprodukter"]
[]
[null,"Med dette program kan du sammenligne den relle værdi af økologiske gødningsprodukter. I beregningerne indgår næringsstofværdien og omkostninger til indkøb, transport, lagring og udbringning. "]
[]
[]
[]
[]
[null,"Beregningen er foretaget for:",null,null,null,null,null,"Beregningen af foretaget af:"]
[]
[null,"Gårdnavn",null,null,null,null,null,"Forening"]
[null,"Landmand",null,null,null,null,null,"Konsulent",null,null,null,null,null,null,null,"Landmand",null,"Konsulent"]
[null,"Adresse",null,null,null,null,null,"Adresse ",null,null,null,null,null,null,null,"Tom?","Postnr","Tom?","Postnr"]
[null,"Postnummer",null,null,{"$f":"IF(P18=FALSE,VLOOKUP(Q18,Postnr,2,FALSE),\"\")","v":""},null,null,"Postnummer",null,null,{"$f":"IF(R18=FALSE,VLOOKUP(S18,Postnr,2,FALSE),\"\")","v":""},null,null,null,null,{"$f":"ISBLANK(D18)","v":true},{"$f":"VALUE(LEFT(D18,4))","v":{"$error":"#VALUE!"}},{"$f":"ISBLANK(J18)","v":true},{"$f":"VALUE(LEFT(J18,4))","v":{"$error":"#VALUE!"}}]
[null,"E-mail",null,null,null,null,null,"E-mail"]
[]
[]
[null,"Scenarienavn:"]

{"sheet":"Betalingsvillighed","index":1,"n_rows":16,"n_cols":20,"rows_kept":16,"cut":false,"hidden":false,"merged":[[3,1,6,11]]}
[]
[null,"Næringsstofpriser og næringsstofprioritering"]
[]
[null,"Anfør de næringsstoffer, som du er villig til at betale for, og hvad du i givet fald maksimalt er villig til at betale for dem. Som udgangspunkt er der anført næringsstofpriser i konventionel handelsgødning. Sæt ü ved de næringsstoffer, som du har behov for at købe og anfør den pris, du er villig til at betale."]
[]
[]
[]
[null,null,null,null,null,null,"Næringsstof"]
[null,null,"Næringsstof","Vælg","Pris,","Vælg","prioriteret,"]
[null,null,null,null,"kr. pr. kg",null,"Kg pr. ha",null,null,null,null,null,null,null,null,null,"Indregnet pris",null,null,"Max. Mængde"]
[null,null,"Kvælstof, udnyttet",null,{"$f":"Forudsætninger!$C6","v":8},null,100,null,null,null,null,null,null,{"$f":"Forudsætninger!$C6","v":8},null,true,{"$f":"IF(P11=TRUE,E11,0)","v":8},null,true,{"$f":"IF(S11=TRUE,G11,0)","v":100}]
[null,null,"Fosfor",null,{"$f":"Forudsætninger!$C7","v":10},null,25,null,null,null,null,null,null,{"$f":"Forudsætninger!$C7","v":10},null,false,{"$f":"IF(P12=TRUE,E12,0)","v":0},null,false,{"$f":"IF(S12=TRUE,G12,0)","v":0}]
[null,null,"Kalium",null,{"$f":"Forudsætninger!$C8","v":6},null,50,null,null,null,null,null,null,{"$f":"Forudsætninger!$C8","v":6},null,true,6,null,false,{"$f":"IF(S13=TRUE,G13,0)","v":0}]
[null,null,"Svovl",null,{"$f":"Forudsætninger!$C9","v":2},null,"-",null,null,null,null,null,null,{"$f":"Forudsætninger!$C9","v":2},null,true,2]
[null,null,"Magnesium",null,{"$f":"Forudsætninger!$C10","v":4},null,"-",null,null,null,null,null,null,{"$f":"Forudsætninger!$C10","v":4},null,false,0]
[null,null,null,null,null,null,null,null,null,null,null,null,null,null,null,null,null,null,{"$f":"IF(S11=TRUE,CONCATENATE(T11,\" kg udn. N/ha\"),IF(S12=TRUE,CONCATENATE(T12,\" kg P/ha\"),IF(S13=TRUE,CONCATENATE(T13,\" kg K/ha\"))))","v":"100 kg udn. N/ha"}]

{"sheet":"Gødningsprodukter","index":2,"n_rows":21,"n_cols":48,"rows_kept":21,"cut":false,"hidden":false,"merged":[[8,3,8,8],[7,12,7,15],[7,16,7,17],[7,18,7,19],[7,24,7,28],[8,24,8,28],[7,22,7,23],[8,22,8,23]]}
[]
[null,"Sammenligning af gødningsprodukter"]
[]
[null,"Vælg de gødningstyper, du ønsker at sammenligne. Tag stilling til indkøbspris og til om du skal betale for transport og lagring."]
[null,"Tilret priser og indhold af næringsstoffer til de specifikke produkter som du kan få fat i."]
[]
[]
[null,null,null,null,null,null,null,null,null,null,null,null,"Transport",null,null,null,"Lagring",null,"Udbringning",null,"Omkost.","Værdi ÷","Ved:",null,"Medfølgende næringsstoffer, "]
[null,"Gødningsprodukt",null,"Næringsstofindhold, kg pr. ton",null,null,null,null,null,"N-udn.","Værdi,","Indkøb,","Betal-","Transport-","Afstand,","Omkost.","Betal-",null,"Nedfæld-","Omkost.","i alt","omkost.",{"$f":"Betalingsvillighed!S16","v":"100 kg udn. N/ha"},null,"kg pr. ha",null,null,null,null,"Transport-","Tilstand",null,"Betaling for:",null,"Nedfæld.-","Tillæg for",null,null,null,"Næringsstofindhold, kg pr. ton",null,null,null,null,null,"N-udn.","Værdi,","Indkøb,"]
[null,null,"Nr.","Tot-N","NH4-N","P","K","S","Mg","pct.","kr./ton","kr./ton","ing","form","km","kr./ton","ing","kr./ton","ning","kr./ton","kr./ton","kr./ton","Ton/ha","Kr./ha","Udn. N","P","K","S","Mg","form",null,null,"Transport","Lagring","ning","nedfældning",null,null,null,"Tot-N","NH4-N","P","K","S","Mg","pct.","kr./ton","kr./ton"]
[null,null,10,{"$f":"IF($C11>1,INDEX(Produkttabel,C11,4),\"\")","v":5},{"$f":"IF($C11>1,INDEX(Produkttabel,C11,5),\"\")","v":0},{"$f":"IF($C11>1,INDEX(Produkttabel,C11,6),\"\")","v":1.75},{"$f":"IF($C11>1,INDEX(Produkttabel,C11,7),\"\")","v":11.25},{"$f":"IF($C11>1,INDEX(Produkttabel,C11,8),\"\")","v":15},{"$f":"IF($C11>1,INDEX(Produkttabel,$C11,9),\"\")","v":0},{"$f":"IF($C11>1,INDEX(Produkttabel,$C11,10),\"\")","v":60},{"$f":"IF(C11>1,D11*J11%*Npris+F11*Ppris+G11*Kpris+H11*Spris+I11*Mgpris,\"\")","v":121.5},{"$f":"IF($C11>1,INDEX(Produkttabel,$C11,12),\"\")","v":38},null,null,5,{"$f":"IF(C11>1,IF(AND(AG11=TRUE,AD11<>\"\"),((VLOOKUP(AF11,Transportomkostninger,3)/60+((O11*2)/VLOOKUP(AF11,Transportomkostninger,4)))*VLOOKUP(AF11,Transportomkostninger,2)/VLOOKUP(AF11,Transportomkostninger,5)),0),\"\")","v":40},null,{"$f":"IF(C11>1,IF(AH11=TRUE,IF($C11>1,INDEX(Produkttabel,C11,13),\"\"),0),\"\")","v":0},null,{"$f":"IF($C11>1,((INDEX(Produkttabel,$C11,14)+AJ11)),\"\")","v":30},{"$f":"IF(C11>1,L11+P11+R11+T11,\"\")","v":108},{"$f":"IF(C11>1,K11-U11,\"\")","v":13.5},{"$f":"IF(C11>1,(IF(Betalingsvillighed!$S$11=TRUE,Betalingsvillighed!$T$11/(Gødningsprodukter!D11*J11%),IF(Betalingsvillighed!$S$12=TRUE,Betalingsvillighed!$T$12/Gødningsprodukter!F11,IF(Betalingsvillighed!$S$13=TRUE,Betalingsvillighed!$T$13/Gødningsprodukter!G11)))),\"\")","v":33.333333333333336},{"$f":"IF(C11>1,W11*V11,\"\")","v":450.00000000000006},{"$f":"IF(C11>1,W11*J11%*D11,\"\")","v":100},{"$f":"IF(C11>1,W11*F11,\"\")","v":58.333333333333336},{"$f":"IF(C11>1,W11*G11,\"\")","v":375},{"$f":"IF(C11>1,W11*H11,\"\")","v":500.00000000000006},{"$f":"IF(C11>1,W11*I11,\"\")","v":0},"Traktor",{"$f":"IF($C11>1,INDEX(Produkttabel,$C11,11),\"\")","v":"Fast"},{"$f":"CONCATENATE(AD11,AE11)","v":"TraktorFast"},true,false,true,{"$f":"IF(AI11=TRUE,TillægForNedfældning,0)","v":5},null,null,null,{"$f":"IF($C11>1,INDEX(Produkttabel,AM11,4),\"\")","v":4.4000000000000004},{"$f":"IF($C11>1,INDEX(Produkttabel,AM11,5),\"\")","v":2.6},{"$f":"IF($C11>1,INDEX(Produkttabel,AM11,6),\"\")","v":0.7},{"$f":"IF($C11>1,INDEX(Produkttabel,AM11,7),\"\")","v":3.2},{"$f":"IF($C11>1,INDEX(Produkttabel,AM11,8),\"\")","v":0},{"$f":"IF($C11>1,INDEX(Produkttabel,$C11,9),\"\")","v":0},{"$f":"IF($C11>1,INDEX(Produkttabel,$C11,10),\"\")","v":60},{"$f":"IF(AM11>1,AN11*AT11%*Npris+AP11*Ppris+AQ11*Kpris+AR11*Spris+AS11*Mgpris,\"\")","v":""},{"$f":"IF($C11>1,INDEX(Produkttabel,$C11,12),\"\")","v":38}]
[null,null,8,8.6,3.8,3.2,1.7,0,0,70,58.36,0,null,null,10,37.799999999999997,null,0,null,25,62.8,-4.4399999999999977,{"$f":"IF(C12>1,(IF(Betalingsvillighed!$S$11=TRUE,Betalingsvillighed!$T$11/(Gødningsprodukter!D12*J12%),IF(Betalingsvillighed!$S$12=TRUE,Betalingsvillighed!$T$12/Gødningsprodukter!F12,IF(Betalingsvillighed!$S$13=TRUE,Betalingsvillighed!$T$13/Gødningsprodukter!G12)))),\"\")","v":16.611295681063122},-73.754152823920222,99.999999999999986,53.156146179401993,28.239202657807308,0,0,"Traktor","Flydende",{"$f":"CONCATENATE(AD12,AE12)","v":"TraktorFlydende"},true,false,true,5,null,null,null,3.9,2.9,1,1.7,0,0,70,"",0]
[null,null,2,4.4000000000000004,2.6,0.7,3.2,0,0,70,43.84,0,null,null,2,9,null,0,null,25,34,9.8400000000000034,{"$f":"IF(C13>1,(IF(Betalingsvillighed!$S$11=TRUE,Betalingsvillighed!$T$11/(Gødningsprodukter!D13*J13%),IF(Betalingsvillighed!$S$12=TRUE,Betalingsvillighed!$T$12/Gødningsprodukter!F13,IF(Betalingsvillighed!$S$13=TRUE,Betalingsvillighed!$T$13/Gødningsprodukter!G13)))),\"\")","v":32.467532467532465},319.48051948051955,99.999999999999986,22.727272727272723,103.8961038961039,0,0,"Traktor","Flydende",{"$f":"CONCATENATE(AD13,AE13)","v":"TraktorFlydende"},true,false,true,5,null,null,null,4.5,3.4,1.2,2.6,0,0,70,"",0]
[null,null,10,5,0,1.75,11.25,15,0,60,121.5,38,null,null,10,0,null,0,null,25,63,58.5,{"$f":"IF(C14>1,(IF(Betalingsvillighed!$S$11=TRUE,Betalingsvillighed!$T$11/(Gødningsprodukter!D14*J14%),IF(Betalingsvillighed!$S$12=TRUE,Betalingsvillighed!$T$12/Gødningsprodukter!F14,IF(Betalingsvillighed!$S$13=TRUE,Betalingsvillighed!$T$13/Gødningsprodukter!G14)))),\"\")","v":33.333333333333336},1950.0000000000002,100,58.333333333333336,375,500.00000000000006,0,null,"Fast",{"$f":"CONCATENATE(AD14,AE14)","v":"Fast"},false,false,false,0,null,null,null,18.5,6.5,6,9.6999999999999993,0,0,60,"",38]
[null,null,1,"","","","","","","","","",null,null,null,"",null,"",null,"","","",{"$f":"IF(C15>1,(IF(Betalingsvillighed!$S$11=TRUE,Betalingsvillighed!$T$11/(Gødningsprodukter!D15*J15%),IF(Betalingsvillighed!$S$12=TRUE,Betalingsvillighed!$T$12/Gødningsprodukter!F15,IF(Betalingsvillighed!$S$13=TRUE,Betalingsvillighed!$T$13/Gødningsprodukter!G15)))),\"\")","v":""},"","","","","","",null,"",{"$f":"CONCATENATE(AD15,AE15)","v":""},false,false,false,0,null,null,null,"","","","","","","","",""]
[null,null,1,"","","","","","","","","",null,null,null,"",null,"",null,"","","",{"$f":"IF(C16>1,(IF(Betalingsvillighed!$S$11=TRUE,Betalingsvillighed!$T$11/(Gødningsprodukter!D16*J16%),IF(Betalingsvillighed!$S$12=TRUE,Betalingsvillighed!$T$12/Gødningsprodukter!F16,IF(Betalingsvillighed!$S$13=TRUE,Betalingsvillighed!$T$13/Gødningsprodukter!G16)))),\"\")","v":""},"","","","","","",null,"","",false,false,false,0,null,null,null,"","","","","","","","",""]
[null,null,1,"","","","","","","","","",null,null,null,"",null,"",null,"","","",{"$f":"IF(C17>1,(IF(Betalingsvillighed!$S$11=TRUE,Betalingsvillighed!$T$11/(Gødningsprodukter!D17*J17%),IF(Betalingsvillighed!$S$12=TRUE,Betalingsvillighed!$T$12/Gødningsprodukter!F17,IF(Betalingsvillighed!$S$13=TRUE,Betalingsvillighed!$T$13/Gødningsprodukter!G17)))),\"\")","v":""},"","","","","","",null,"","",false,false,false,0,null,null,null,"","","","","","","","",""]
[null,null,1,"","","","","","","","","",null,null,null,"",null,"",null,"","","",{"$f":"IF(C18>1,(IF(Betalingsvillighed!$S$11=TRUE,Betalingsvillighed!$T$11/(Gødningsprodukter!D18*J18%),IF(Betalingsvillighed!$S$12=TRUE,Betalingsvillighed!$T$12/Gødningsprodukter!F18,IF(Betalingsvillighed!$S$13=TRUE,Betalingsvillighed!$T$13/Gødningsprodukter!G18)))),\"\")","v":""},"","","","","","",null,"","",false,false,false,0,null,null,null,"","","","","","","","",""]
[null,null,1,"","","","","","","","","",null,null,null,"",null,"",null,"","","",{"$f":"IF(C19>1,(IF(Betalingsvillighed!$S$11=TRUE,Betalingsvillighed!$T$11/(Gødningsprodukter!D19*J19%),IF(Betalingsvillighed!$S$12=TRUE,Betalingsvillighed!$T$12/Gødningsprodukter!F19,IF(Betalingsvillighed!$S$13=TRUE,Betalingsvillighed!$T$13/Gødningsprodukter!G19)))),\"\")","v":""},"","","","","","",null,"",{"$f":"CONCATENATE(AD19,AE19)","v":""},false,false,false,0,null,null,null,"","","","","","","","",""]
[null,null,1,"","","","","","","","","",null,null,null,"",null,"",null,"","","",{"$f":"IF(C20>1,(IF(Betalingsvillighed!$S$11=TRUE,Betalingsvillighed!$T$11/(Gødningsprodukter!D20*J20%),IF(Betalingsvillighed!$S$12=TRUE,Betalingsvillighed!$T$12/Gødningsprodukter!F20,IF(Betalingsvillighed!$S$13=TRUE,Betalingsvillighed!$T$13/Gødningsprodukter!G20)))),\"\")","v":""},"","","","","","",null,"","",false,false,false,0,null,null,null,"","","","","","","","",""]
[null,null,null,{"$f":"IF($C21>1,INDEX(Produkttabel,C21,4),\"\")","v":""},null,{"$f":"IF($C21>1,INDEX(Produkttabel,D21,5),\"\")","v":""},{"$f":"IF($C21>1,INDEX(Produkttabel,F21,6),\"\")","v":""},{"$f":"IF($C21>1,INDEX(Produkttabel,G21,7),\"\")","v":""},{"$f":"IF($C21>1,INDEX(Produkttabel,H21,8),\"\")","v":""}]

{"sheet":"Opslagstabeller","index":3,"n_rows":66,"n_cols":33,"rows_kept":66,"cut":false,"hidden":false,"merged":[]}
[]
[null,"Økologiske gødningsprodukter"]
[]
[]
[]
[]
[null,null,null,null,"Næringsstofindhold, kg pr. ton",null,null,null,null,null,"N-udn.",null,"Indkøb,","Lagring,","Udbring-"]
[null,null,"Nr.","Oprindelse","Total-N","NH4-N","Fosfor","Kalium","Svovl","Magne-sium","pct.","Produkt-form","kr./ton","kr. pr. ton","ning, kr. pr. ton"]
[null,1,2,3,4,5,6,7,8,9,10,11,12,13,14,15]
[null,"Vælg produkt",1]
[null,"Kvæggylle",2,null,4.4000000000000004,2.6,0.7,3.2,null,null,70,"Flydende",null,12,20,null,null,null,null,"Kvæggylle",2,null,4.4000000000000004,2.6,0.7,3.2,null,null,70,"Flydende",null,12,20]
[null,"Sogylle",3,null,3.9,2.9,1,1.7,null,null,75,"Flydende",null,12,20,null,null,null,null,"Sogylle",3,null,3.9,2.9,1,1.7,null,null,75,"Flydende",null,12,20]
[null,"Slagtesvinegylle",4,null,4.5,3.4,1.2,2.6,null,null,75,"Flydende",null,12,20,null,null,null,null,"Slagtesvinegylle",4,null,4.5,3.4,1.2,2.6,null,null,75,"Flydende",null,12,20]
[null,"Fast gødning, høns.",5,null,18.5,6.5,6,9.6999999999999993,null,null,65,"Fast",null,20,25,null,null,null,null,"Fast gødning, høns.",5,null,18.5,6.5,6,9.6999999999999993,null,null,65,"Fast",null,20,25]
[null,"Dybstrøelse, slagtekyll.",6,null,26.6,8,8.4,17.399999999999999,null,null,45,"Fast",null,20,25,null,null,null,null,"Dybstrøelse, slagtekyll.",6,null,26.6,8,8.4,17.399999999999999,null,null,45,"Fast",null,20,25]
[null,"Dybstøelse, kvæg",7,null,7.5,1.5,1.1000000000000001,8,null,null,45,"Fast",null,20,25,null,null,null,null,"Dybstøelse, kvæg",7,null,7.5,1.5,1.1000000000000001,8,null,null,45,"Fast",null,20,25]
[null,"Minkgylle",8,null,8.6,3.8,3.2,1.7,null,null,70,"Flydende",null,12,20,null,null,null,null,"Minkgylle",8,null,8.6,3.8,3.2,1.7,null,null,70,"Flydende",null,12,20]
[null,"Biogrow",9,null,100,null,28,10,null,null,70,"Fast",3100,20,25,null,null,null,null,"Biogrow",9,null,100,null,28,10,null,null,70,"Fast",3100,20,25]
[null,"Sojamelasse",10,null,5,null,1.75,11.25,15,null,60,"Fast",38,20,25,null,null,null,null,"Sojamelasse",10,null,5,null,1.75,11.25,5,null,60,"Fast",38,20,25]
[null,"Biovækstkompost",11,null,15.3,1.8,4.7,7.7,2.2999999999999998,0.9,20,"Fast",0,20,25,null,null,null,null,"Biovækstkompost",11,null,15.3,1.8,4.7,7.7,2.2999999999999998,0.9,20,"Fast",0,20,25]
[null,"Protamylasse",12,null,12.75,0,2.35,32.950000000000003,4.3,1.7999999999999998,50,"Flydende",154,12,20,null,null,null,null,"Protamylasse",12,null,12.75,0,2.35,32.950000000000003,4.3,1.7999999999999998,50,"Flydende",154,12,20]
[null,"Kartoffelfrugtsaft",13,null,1.05,null,0.22,3.66,1.49,0.16,50,"Flydende",5.4,12,20,null,null,null,null,"Kartoffelfrugtsaft",13,null,1.05,null,0.22,3.66,1.49,0.16,50,"Flydende",5.4,12,20]
[null,"kartoffekondensat",14,null,0.85,null,0.1,1.4,null,null,50,"Flydende",0,12,20,null,null,null,null,"kartoffekondensat",14,null,0.85,null,0.1,1.4,null,null,50,"Flydende",0,12,20]
[null,"Kaliumvinasse-pulver",15,null,6,null,0,210,170,2,50,"Fast",1950,20,25,null,null,null,null,"Kaliumvinasse-pulver",15,null,6,null,0,210,170,2,50,"Fast",1950,20,25]
[null,"Haveparkaffald",16,null,5,null,0.9,3.5,0.7,1.35,5,"Fast",0,20,25,null,null,null,null,"Haveparkaffald",16,null,5,null,0.9,3.5,0.7,1.35,5,"Fast",0,20,25]
[null,"Binadan 5-2-4",17,null,50,15,18,38,null,6.4,70,"Fast",2840,5,100,null,null,null,null,"Binadan 5-2-4",17,null,50,15,18,38,null,6.4,70,"Fast",2840,5,100]
[null,"Patentkali",18,null,null,null,null,249,170,60,null,"Granulat",3400,5,100,null,null,null,null,"Patentkali",18,null,null,null,null,249,170,60,null,"Granulat",3400,5,100]
[null,"Kiserit 15 granuleret",19,null,null,null,null,null,200,151,null,"Granulat",2250,5,100,null,null,null,null,"Kiserit 15 granuleret",19,null,null,null,null,null,200,151,null,"Granulat",2250,5,100]
[null,"Magnesia kainit ",20,null,null,null,91,null,40,30,null,"Granulat",1400,5,100,null,null,null,null,"Magnesia kainit ",20,null,null,null,91,null,40,30,null,"Granulat",1400,5,100]
[null,"Kaliumsulfat 41",21,null,null,null,null,415,180,null,null,"Granulat",4550,20,25,null,null,null,null,"Kaliumsulfat 41",21,null,null,null,null,415,180,null,null,"Granulat",4550,20,25]
[null,"Egen type 1",22,null,null,null,null,null,null,null,null,null,null,null,null,null,null,null,null,"Egen type 1",22]
[null,"Egen type 2",23,null,null,null,null,null,null,null,null,null,null,null,null,null,null,null,null,"Egen type 2",23]
[null,"Egen type 3",24,null,null,null,null,null,null,null,null,null,null,null,null,null,null,null,null,"Egen type 3",24]
[null,"Egen type 4",25,null,null,null,null,null,null,null,null,null,null,null,null,null,null,null,null,"Egen type 4",25]
[]
[]
[]
[null,"Transportform"]
[null,1,2,3,4,5]
[]
[null,"Traktor","Traktor"]
[null,"Lastbil","Lastbil"]
[]
[]
[]
[null,"Transportomkostninger"]
[null,null,null,null,"Time-","Læsse/losse","Hastighed","Læsstr., "]
[null,null,null,null,"pris","min/læs","km/t","ton/læs"]
[null,null,null,1,2,3,4,5,6,7,8,9,10,11]
[null,"Lastbil","Fast",{"$f":"CONCATENATE(B50,C50)","v":"LastbilFast"},{"$f":"Forudsætninger!D16","v":700},{"$f":"Forudsætninger!E16","v":10},{"$f":"Forudsætninger!F16","v":70},{"$f":"Forudsætninger!G16","v":20}]
[null,"Lastbil","Flydende","LastbilFlydende",{"$f":"Forudsætninger!D17","v":700},{"$f":"Forudsætninger!E17","v":4},{"$f":"Forudsætninger!F17","v":70},{"$f":"Forudsætninger!G17","v":30}]
[null,"Lastbil","Granulat","LastbilGranulat",{"$f":"Forudsætninger!D18","v":700},{"$f":"Forudsætninger!E18","v":20},{"$f":"Forudsætninger!F18","v":70},{"$f":"Forudsætninger!G18","v":20}]
[null,"Traktor","Fast","TraktorFast",{"$f":"Forudsætninger!D19","v":900},{"$f":"Forudsætninger!E19","v":10},{"$f":"Forudsætninger!F19","v":20},{"$f":"Forudsætninger!G19","v":15}]
[null,"Traktor","Flydende","TraktorFlydende",{"$f":"Forudsætninger!D20","v":900},{"$f":"Forudsætninger!E20","v":3},{"$f":"Forudsætninger!F20","v":20},{"$f":"Forudsætninger!G20","v":25}]
[null,"Traktor","Granulat","TraktorGranulat",{"$f":"Forudsætninger!D21","v":900},{"$f":"Forudsætninger!E21","v":20},{"$f":"Forudsætninger!F21","v":70},{"$f":"Forudsætninger!G21","v":20}]
[]
[]
[null,"Tillæg for nedfældning"]
[null,"Tillæg",{"$f":"Forudsætninger!C25","v":5},"kr. pr. ton"]
[]
[]
[]
[]
[null,"Dokumentation:"]
[null,"N-udnyttelses%","Husdyrgødning følger normerne"]
[null,null,"Øvrige er ekspertskøn"]

{"sheet":"Forudsætninger","index":4,"n_rows":25,"n_cols":17,"rows_kept":25,"cut":false,"hidden":false,"merged":[]}
[]
[null,"Beregningsforudsætninger"]
[]
[null,"Næringsstofpriser",null,null,null,null,null,null,null,null,null,null,null,"SEGES-fastsatte defaultværdier"]
[null,null,"Pris, kr. pr. kg"]
[null,"Udnyttet kvælstof",8,null,null,null,null,null,null,null,null,null,null,8]
[null,"Fosfor",10,null,null,null,null,null,null,null,null,null,null,10]
[null,"Kalium",6,null,null,null,null,null,null,null,null,null,null,6]
[null,"Svovl",2,null,null,null,null,null,null,null,null,null,null,2]
[null,"Magnesium",4,null,null,null,null,null,null,null,null,null,null,4]
[]
[]
[null,"Forudsætninger for transportomkostninger"]
[null,null,null,"Time-","Læsse/losse","Hastighed","Læsstr., "]
[null,"Transportform","Produktform","pris","min/læs","km/t","ton/læs",null,null,null,null,null,null,700,10,70,20]
[null,"Lastbil","Fast",700,10,70,20,null,null,null,null,null,null,700,4,70,30]
[null,null,"Flydende",700,4,70,30,null,null,null,null,null,null,700,20,70,20]
[null,null,"Granulat",700,20,70,20,null,null,null,null,null,null,900,10,20,15]
[null,"Traktor","Fast",900,10,20,15,null,null,null,null,null,null,900,3,20,25]
[null,null,"Flydende",900,3,20,25,null,null,null,null,null,null,900,20,70,20]
[null,null,"Granulat",900,20,70,20]
[]
[]
[null,"Tillæg for nedfældning"]
[null,"Tillæg",5,"kr. pr. ton",null,null,null,null,null,null,null,null,null,5]

{"sheet":"Udskrift","index":5,"n_rows":0,"n_cols":0,"rows_kept":0,"cut":false,"hidden":false,"merged":[]}

{"sheet":"Postnummer","index":6,"n_rows":597,"n_cols":3,"rows_kept":597,"cut":false,"hidden":false,"merged":[]}
[]
[]
[]
[null,2000,"Frederiksberg"]
[null,2100,"København Ø"]
[null,2200,"København N"]
[null,2300,"København S"]
[null,2400,"København NV"]
[null,2450,"København SV"]
[null,2500,"Valby"]
[null,2600,"Glostrup"]
[null,2605,"Brøndby"]
[null,2610,"Rødovre"]
[null,2620,"Albertslund"]
[null,2625,"Vallensbæk"]
[null,2630,"Taastrup"]
[null,2635,"Ishøj"]
[null,2640,"Hedehusene"]
[null,2650,"Hvidovre"]
[null,2660,"Brøndby Strand"]
[null,2665,"Vallensbæk Strand"]
[null,2670,"Greve"]
[null,2680,"Solrød"]
[null,2690,"Karlslunde"]
[null,2700,"Brønshøj"]
[null,2720,"Vanløse"]
[null,2730,"Herlev"]
[null,2740,"Skovlunde"]
[null,2750,"Ballerup"]
[null,2760,"Måløv"]
[null,2765,"Smørum"]
[null,2770,"Kastrup"]
[null,2791,"Dragør"]
[null,2800,"Kongens Lyngby"]
[null,2820,"Gentofte"]
[null,2830,"Virum"]
[null,2840,"Holte"]
[null,2850,"Nærum"]
[null,2860,"Søborg"]
[null,2870,"Dyssegård"]
[null,2880,"Bagsværd"]
[null,2900,"Hellerup"]
[null,2920,"Charlottenlund"]
[null,2930,"Klampenborg"]
[null,2942,"Skodsborg"]
[null,2950,"Vedbæk"]
[null,2960,"Rungsted Kyst"]
[null,2970,"Hørsholm"]
[null,2980,"Kokkedal"]
[null,2990,"Nivå"]
[null,3000,"Helsingør"]
[null,3050,"Humlebæk"]
[null,3050,"Humlebæk"]
[null,3060,"Espergærde"]
[null,3070,"Snekkersten"]
[null,3080,"Tikøb"]
[null,3100,"Hornbæk"]
[null,3120,"Dronningmølle"]
[null,3140,"Ålsgårde"]
[null,3150,"Hellebæk"]
[null,3200,"Helsinge"]
[null,3210,"Vejby"]
[null,3220,"Tisvildeleje"]
[null,3230,"Græsted"]
[null,3250,"Gilleleje"]
[null,3300,"Frederiksværk"]
[null,3310,"Ølsted"]
[null,3320,"Skævinge"]
[null,3330,"Gørløse"]
[null,3360,"Liseleje"]
[null,3370,"Melby"]
[null,3390,"Hundested"]
[null,3400,"Hillerød"]
[null,3450,"Allerød"]
[null,3460,"Birkerød"]
[null,3480,"Fredensborg"]
[null,3490,"Kvistgård"]
[null,3500,"Værløse"]
[null,3520,"Farum"]
[null,3540,"Lynge"]
[null,3550,"Slangerup"]
[null,3600,"Frederikssund"]
[null,3630,"Jægerspris"]
[null,3650,"Ølstykke"]
[null,3660,"Stenløse"]
[null,3670,"Veksø Sjælland"]
[null,3700,"Rønne"]
[null,3720,"Aakirkeby"]
[null,3730,"Neksø"]
[null,3740,"Svaneke"]
[null,3751,"Østermarie"]
[null,3760,"Gudhjem"]
[null,3770,"Allinge"]
[null,3782,"Klemensker"]
[null,3790,"Hasle"]
[null,4000,"Roskilde"]
[null,4030,"Tune"]
[null,4040,"Jyllinge"]
[null,4050,"Skibby"]
[null,4060,"Kirke Såby"]
[null,4070,"Kirke Hyllinge"]
[null,4100,"Ringsted"]
[null,4130,"Viby Sjælland"]
[null,4140,"Borup"]
[null,4160,"Herlufmagle"]
[null,4171,"Glumsø"]
[null,4173,"Fjenneslev"]
[null,4174,"Jystrup Midtsj"]
[null,4180,"Sorø"]
[null,4190,"Munke Bjergby"]
[null,4200,"Slagelse"]
[null,4220,"Korsør"]
[null,4230,"Skælskør"]
[null,4241,"Vemmelev"]
[null,4242,"Boeslunde"]
[null,4243,"Rude"]
[null,4250,"Fuglebjerg"]
[null,4261,"Dalmose"]
[null,4262,"Sandved"]
[null,4270,"Høng"]
[null,4281,"Gørlev"]
[null,4291,"Ruds Vedby"]
[null,4293,"Dianalund"]
[null,4295,"Stenlille"]
[null,4296,"Nyrup"]
[null,4300,"Holbæk"]
[null,4320,"Lejre"]
[null,4330,"Hvalsø"]
[null,4340,"Tølløse"]
[null,4340,"Tølløse"]
[null,4350,"Ugerløse"]
[null,4360,"Kirke Eskilstrup"]
[null,4370,"Store Merløse"]
[null,4390,"Vipperød"]
[null,4400,"Kalundborg"]
[null,4420,"Regstrup"]
[null,4440,"Mørkøv"]
[null,4450,"Jyderup"]
[null,4460,"Snertinge"]
[null,4470,"Svebølle"]
[null,4480,"Store Fuglede"]
[null,4490,"Jerslev Sjælland"]
[null,4500,"Nykøbing Sj"]
[null,4520,"Svinninge"]
[null,4532,"Gislinge"]
[null,4534,"Hørve"]
[null,4540,"Fårevejle"]
[null,4550,"Asnæs"]
[null,4560,"Vig"]
[null,4571,"Grevinge"]
[null,4572,"Nørre Asmindrup"]
[null,4573,"Højby"]
[null,4581,"Rørvig"]
[null,4583,"Sjællands Odde"]
[null,4591,"Føllenslev"]
[null,4592,"Sejerø"]
[null,4593,"Eskebjerg"]
[null,4600,"Køge"]
[null,4621,"Gadstrup"]
[null,4622,"Havdrup"]
[null,4623,"Lille Skensved"]
[null,4632,"Bjæverskov"]
[null,4640,"Faxe"]
[null,4652,"Hårlev"]
[null,4653,"Karise"]
[null,4654,"Faxe Ladeplads"]
[null,4660,"Store Heddinge"]
[null,4671,"Strøby"]
[null,4672,"Klippinge"]
[null,4673,"Rødvig Stevns"]
[null,4681,"Herfølge"]
[null,4682,"Tureby"]
[null,4683,"Rønnede"]
[null,4684,"Holmegaard"]
[null,4690,"Haslev"]
[null,4700,"Næstved"]
[null,4720,"Præstø"]
[null,4733,"Tappernøje"]
[null,4735,"Mern"]
[null,4736,"Karrebæksminde"]
[null,4750,"Lundby"]
[null,4760,"Vordingborg"]
[null,4771,"Kalvehave"]
[null,4772,"Langebæk"]
[null,4773,"Stensved"]
[null,4780,"Stege"]
[null,4791,"Borre"]
[null,4792,"Askeby"]
[null,4793,"Bogø By"]
[null,4800,"Nykøbing F"]
[null,4840,"Nørre Alslev"]
[null,4850,"Stubbekøbing"]
[null,4862,"Guldborg"]
[null,4863,"Eskilstrup"]
[null,4871,"Horbelev"]
[null,4872,"Idestrup"]
[null,4873,"Væggerløse"]
[null,4874,"Gedser"]
[null,4880,"Nysted"]
[null,4891,"Toreby L"]
[null,4892,"Kettinge"]
[null,4894,"Øster Ulslev"]
[null,4895,"Errindlev"]
[null,4900,"Nakskov"]
[null,4912,"Harpelunde"]
[null,4913,"Horslunde"]
[null,4920,"Søllested"]
[null,4930,"Maribo"]
[null,4930,"Maribo"]
[null,4941,"Bandholm"]
[null,4943,"Torrig L"]
[null,4943,"Torrig L"]
[null,4944,"Fejø"]
[null,4951,"Nørreballe"]
[null,4952,"Stokkemarke"]
[null,4953,"Vesterborg"]
[null,4960,"Holeby"]
[null,4970,"Rødby"]
[null,4983,"Dannemare"]
[null,4990,"Sakskøbing"]
[null,5000,"Odense C"]
[null,5200,"Odense V"]
[null,5210,"Odense NV"]
[null,5220,"Odense SØ"]
[null,5230,"Odense M"]
[null,5240,"Odense NØ"]
[null,5250,"Odense SV"]
[null,5260,"Odense S"]
[null,5270,"Odense N"]
[null,5290,"Marslev"]
[null,5300,"Kerteminde"]
[null,5320,"Agedrup"]
[null,5330,"Munkebo"]
[null,5350,"Rynkeby"]
[null,5370,"Mesinge"]
[null,5380,"Dalby"]
[null,5390,"Martofte"]
[null,5400,"Bogense"]
[null,5450,"Otterup"]
[null,5462,"Morud"]
[null,5463,"Harndrup"]
[null,5464,"Brenderup Fyn"]
[null,5466,"Asperup"]
[null,5471,"Søndersø"]
[null,5474,"Veflinge"]
[null,5485,"Skamby"]
[null,5491,"Blommenslyst"]
[null,5492,"Vissenbjerg"]
[null,5500,"Middelfart"]
[null,5540,"Ullerslev"]
[null,5550,"Langeskov"]
[null,5560,"Aarup"]
[null,5580,"Nørre Aaby"]
[null,5591,"Gelsted"]
[null,5592,"Ejby"]
[null,5600,"Faaborg"]
[null,5610,"Assens"]
[null,5620,"Glamsbjerg"]
[null,5631,"Ebberup"]
[null,5642,"Millinge"]
[null,5672,"Broby"]
[null,5683,"Haarby"]
[null,5690,"Tommerup"]
[null,5700,"Svendborg"]
[null,5750,"Ringe"]
[null,5762,"Vester Skerninge"]
[null,5771,"Stenstrup"]
[null,5772,"Kværndrup"]
[null,5792,"Årslev"]
[null,5800,"Nyborg"]
[null,5853,"Ørbæk"]
[null,5854,"Gislev"]
[null,5856,"Ryslinge"]
[null,5863,"Ferritslev Fyn"]
[null,5871,"Frørup"]
[null,5874,"Hesselager"]
[null,5881,"Skårup Fyn"]
[null,5882,"Vejstrup"]
[null,5883,"Oure"]
[null,5884,"Gudme"]
[null,5892,"Gudbjerg Sydfyn"]
[null,5900,"Rudkøbing"]
[null,5932,"Humble"]
[null,5935,"Bagenkop"]
[null,5953,"Tranekær"]
[null,5960,"Marstal"]
[null,5970,"Ærøskøbing"]
[null,5985,"Søby Ærø"]
[null,6000,"Kolding"]
[null,6040,"Egtved"]
[null,6051,"Almind"]
[null,6052,"Viuf"]
[null,6064,"Jordrup"]
[null,6070,"Christiansfeld"]
[null,6091,"Bjert"]
[null,6092,"Sønder Stenderup"]
[null,6093,"Sjølund"]
[null,6094,"Hejls"]
[null,6100,"Haderslev"]
[null,6200,"Aabenraa"]
[null,6230,"Rødekro"]
[null,6240,"Løgumkloster"]
[null,6261,"Bredebro"]
[null,6270,"Tønder"]
[null,6280,"Højer"]
[null,6300,"Gråsten"]
[null,6310,"Broager"]
[null,6320,"Egernsund"]
[null,6330,"Padborg"]
[null,6340,"Kruså"]
[null,6360,"Tinglev"]
[null,6372,"Bylderup-Bov"]
[null,6392,"Bolderslev"]
[null,6400,"Sønderborg"]
[null,6430,"Nordborg"]
[null,6440,"Augustenborg"]
[null,6470,"Sydals"]
[null,6500,"Vojens"]
[null,6510,"Gram"]
[null,6520,"Toftlund"]
[null,6534,"Agerskov"]
[null,6535,"Branderup J"]
[null,6541,"Bevtoft"]
[null,6560,"Sommersted"]
[null,6580,"Vamdrup"]
[null,6600,"Vejen"]
[null,6621,"Gesten"]
[null,6622,"Bække"]
[null,6623,"Vorbasse"]
[null,6630,"Rødding"]
[null,6640,"Lunderskov"]
[null,6650,"Brørup"]
[null,6660,"Lintrup"]
[null,6670,"Holsted"]
[null,6682,"Hovborg"]
[null,6683,"Føvling"]
[null,6690,"Gørding"]
[null,6700,"Esbjerg"]
[null,6705,"Esbjerg Ø"]
[null,6710,"Esbjerg V"]
[null,6715,"Esbjerg N"]
[null,6720,"Fanø"]
[null,6731,"Tjæreborg"]
[null,6740,"Bramming"]
[null,6752,"Glejbjerg"]
[null,6753,"Agerbæk"]
[null,6760,"Ribe"]
[null,6771,"Gredstedbro"]
[null,6780,"Skærbæk"]
[null,6792,"Rømø"]
[null,6800,"Varde"]
[null,6818,"Årre"]
[null,6823,"Ansager"]
[null,6830,"Nørre Nebel"]
[null,6840,"Oksbøl"]
[null,6851,"Janderup Vestj"]
[null,6852,"Billum"]
[null,6853,"Vejers Strand"]
[null,6854,"Henne"]
[null,6855,"Ovtrup"]
[null,6857,"Blåvand"]
[null,6862,"Tistrup"]
[null,6870,"Ølgod"]
[null,6880,"Tarm"]
[null,6893,"Hemmet"]
[null,6900,"Skjern"]
[null,6920,"Videbæk"]
[null,6933,"Kibæk"]
[null,6940,"Lem St"]
[null,6950,"Ringkøbing"]
[null,6960,"Hvide Sande"]
[null,6971,"Spjald"]
[null,6973,"Ørnhøj"]
[null,6980,"Tim"]
[null,6990,"Ulfborg"]
[null,7000,"Fredericia"]
[null,7080,"Børkop"]
[null,7100,"Vejle"]
[null,7120,"Vejle Øst"]
[null,7130,"Juelsminde"]
[null,7140,"Stouby"]
[null,7150,"Barrit"]
[null,7160,"Tørring"]
[null,7171,"Uldum"]
[null,7173,"Vonge"]
[null,7182,"Bredsten"]
[null,7183,"Randbøl"]
[null,7184,"Vandel"]
[null,7190,"Billund"]
[null,7200,"Grindsted"]
[null,7250,"Hejnsvig"]
[null,7260,"Sønder Omme"]
[null,7270,"Stakroge"]
[null,7280,"Sønder Felding"]
[null,7300,"Jelling"]
[null,7321,"Gadbjerg"]
[null,7323,"Give"]
[null,7330,"Brande"]
[null,7361,"Ejstrupholm"]
[null,7362,"Hampen"]
[null,7400,"Herning"]
[null,7430,"Ikast"]
[null,7441,"Bording"]
[null,7442,"Engesvang"]
[null,7451,"Sunds"]
[null,7451,"Sunds"]
[null,7470,"Karup J"]
[null,7480,"Vildbjerg"]
[null,7490,"Aulum"]
[null,7500,"Holstebro"]
[null,7540,"Haderup"]
[null,7550,"Sørvad"]
[null,7560,"Hjerm"]
[null,7570,"Vemb"]
[null,7600,"Struer"]
[null,7620,"Lemvig"]
[null,7650,"Bøvlingbjerg"]
[null,7660,"Bækmarksbro"]
[null,7673,"Harboøre"]
[null,7680,"Thyborøn"]
[null,7700,"Thisted"]
[null,7730,"Hanstholm"]
[null,7741,"Frøstrup"]
[null,7742,"Vesløs"]
[null,7752,"Snedsted"]
[null,7755,"Bedsted Thy"]
[null,7760,"Hurup Thy"]
[null,7770,"Vestervig"]
[null,7790,"Thyholm"]
[null,7800,"Skive"]
[null,7830,"Vinderup"]
[null,7840,"Højslev"]
[null,7850,"Stoholm Jyll"]
[null,7860,"Spøttrup"]
[null,7870,"Roslev"]
[null,7884,"Fur"]
[null,7900,"Nykøbing M"]
[null,7950,"Erslev"]
[null,7960,"Karby"]
[null,7970,"Redsted M"]
[null,7980,"Vils"]
[null,7990,"Øster Assels"]
[null,8000,"Århus C"]
[null,8200,"Århus N"]
[null,8210,"Århus V"]
[null,8220,"Brabrand"]
[null,8230,"Åbyhøj"]
[null,8240,"Risskov"]
[null,8250,"Egå"]
[null,8260,"Viby J"]
[null,8270,"Højbjerg"]
[null,8300,"Odder"]
[null,8305,"Samsø"]
[null,8310,"Tranbjerg J"]
[null,8320,"Mårslet"]
[null,8330,"Beder"]
[null,8340,"Malling"]
[null,8350,"Hundslund"]
[null,8355,"Solbjerg"]
[null,8361,"Hasselager"]
[null,8362,"Hørning"]
[null,8370,"Hadsten"]
[null,8380,"Trige"]
[null,8381,"Mundelstrup"]
[null,8382,"Hinnerup"]
[null,8400,"Ebeltoft"]
[null,8410,"Rønde"]
[null,8420,"Knebel"]
[null,8444,"Balle"]
[null,8450,"Hammel"]
[null,8462,"Harlev J"]
[null,8464,"Galten"]
[null,8471,"Sabro"]
[null,8472,"Sporup"]
[null,8500,"Grenaa"]
[null,8520,"Lystrup"]
[null,8530,"Hjortshøj"]
[null,8541,"Skødstrup"]
[null,8541,"Skødstrup"]
[null,8543,"Hornslet"]
[null,8544,"Mørke"]
[null,8550,"Ryomgård"]
[null,8560,"Kolind"]
[null,8570,"Trustrup"]
[null,8581,"Nimtofte"]
[null,8585,"Glesborg"]
[null,8586,"Ørum Djurs"]
[null,8592,"Anholt"]
[null,8600,"Silkeborg"]
[null,8620,"Kjellerup"]
[null,8632,"Lemming"]
[null,8641,"Sorring"]
[null,8643,"Ans By"]
[null,8653,"Them"]
[null,8654,"Bryrup"]
[null,8660,"Skanderborg"]
[null,8670,"Låsby"]
[null,8680,"Ry"]
[null,8700,"Horsens"]
[null,8721,"Daugård"]
[null,8722,"Hedensted"]
[null,8723,"Løsning"]
[null,8732,"Hovedgård"]
[null,8740,"Brædstrup"]
[null,8751,"Gedved"]
[null,8752,"Østbirk"]
[null,8762,"Flemming"]
[null,8763,"Rask Mølle"]
[null,8765,"Klovborg"]
[null,8766,"Nørre Snede"]
[null,8781,"Stenderup"]
[null,8783,"Hornsyld"]
[null,8800,"Viborg"]
[null,8830,"Tjele"]
[null,8831,"Løgstrup"]
[null,8832,"Skals"]
[null,8840,"Rødkærsbro"]
[null,8850,"Bjerringbro"]
[null,8860,"Ulstrup"]
[null,8870,"Langå"]
[null,8881,"Thorsø"]
[null,8882,"Fårvang"]
[null,8883,"Gjern"]
[null,8900,"Randers C"]
[null,8920,"Randers NV"]
[null,8930,"Randers NØ"]
[null,8940,"Randers SV"]
[null,8950,"Ørsted"]
[null,8960,"Randers SØ"]
[null,8961,"Allingåbro"]
[null,8963,"Auning"]
[null,8970,"Havndal"]
[null,8981,"Spentrup"]
[null,8983,"Gjerlev J"]
[null,8990,"Fårup"]
[null,9000,"Aalborg"]
[null,9200,"Aalborg SV"]
[null,9210,"Aalborg SØ"]
[null,9220,"Aalborg Øst"]
[null,9230,"Svenstrup J"]
[null,9240,"Nibe"]
[null,9260,"Gistrup"]
[null,9270,"Klarup"]
[null,9280,"Storvorde"]
[null,9293,"Kongerslev"]
[null,9300,"Sæby"]
[null,9310,"Vodskov"]
[null,9320,"Hjallerup"]
[null,9330,"Dronninglund"]
[null,9340,"Asaa"]
[null,9352,"Dybvad"]
[null,9362,"Gandrup"]
[null,9370,"Hals"]
[null,9380,"Vestbjerg"]
[null,9381,"Sulsted"]
[null,9382,"Tylstrup"]
[null,9400,"Nørresundby"]
[null,9430,"Vadum"]
[null,9440,"Aabybro"]
[null,9460,"Brovst"]
[null,9480,"Løkken"]
[null,9490,"Pandrup"]
[null,9492,"Blokhus"]
[null,9493,"Saltum"]
[null,9500,"Hobro"]
[null,9510,"Arden"]
[null,9520,"Skørping"]
[null,9530,"Støvring"]
[null,9541,"Suldrup"]
[null,9550,"Mariager"]
[null,9560,"Hadsund"]
[null,9574,"Bælum"]
[null,9575,"Terndrup"]
[null,9600,"Aars"]
[null,9610,"Nørager"]
[null,9620,"Aalestrup"]
[null,9631,"Gedsted"]
[null,9632,"Møldrup"]
[null,9640,"Farsø"]
[null,9670,"Løgstør"]
[null,9681,"Ranum"]
[null,9690,"Fjerritslev"]
[null,9700,"Brønderslev"]
[null,9740,"Jerslev J"]
[null,9750,"Øster"]
[null,9760,"Vrå"]
[null,9800,"Hjørring"]
[null,9830,"Tårs"]
[null,9850,"Hirtshals"]
[null,9870,"Sindal"]
[null,9881,"Bindslev"]
[null,9900,"Frederikshavn"]
[null,9940,"Læsø"]
[null,9970,"Strandby"]
[null,9981,"Jerup"]
[null,9982,"Ålbæk"]
[null,9990,"Skagen"]